[Event "Masters Tournament (MTO)"]
[Site "Biel, Switzerland"]
[Date "2026.07.22"]
[Round "9.39"]
[White "Damen, Josephine"]
[Black "Lumsdon, Andrew"]
[Result "0-1"]
[TimeControl "100+30+30sec/move"]
[WhiteTitle "-"]
[BlackTitle "-"]
[WhiteFideId "1074369"]
[BlackFideId "1308840"]
[WhiteElo "1971"]
[BlackElo "2033"]

1. e4 {[%clk 01:40:57]} {[%emt 00:00:02]} d6 {[%clk 01:40:54]} {[%emt
00:00:06]} 2. d4 {[%clk 01:41:23]} {[%emt 00:00:06]} g6 {[%clk 01:41:19]}
{[%emt 00:00:02]} 3. Nc3 {[%clk 01:41:49]} {[%emt 00:00:05]} Bg7 {[%clk
01:41:43]} {[%emt 00:00:05]} 4. Be3 {[%clk 01:42:13]} {[%emt 00:00:07]} Nd7
{[%clk 01:42:02]} {[%emt 00:00:11]} 5. Qd2 {[%clk 01:42:31]} {[%emt 00:00:12]}
c6 {[%clk 01:42:24]} {[%emt 00:00:08]} 6. Nf3 {[%clk 01:40:39]} {[%emt
00:02:21]} e5 {[%clk 01:42:37]} {[%emt 00:00:17]} 7. d5 {[%clk 01:39:50]}
{[%emt 00:01:19]} c5 {[%clk 01:43:00]} {[%emt 00:00:07]} 8. Bd3 {[%clk
01:32:32]} {[%emt 00:07:48]} Qe7 {[%clk 01:41:45]} {[%emt 00:01:46]} 9. Nb5
{[%clk 01:20:14]} {[%emt 00:12:49]} Nb6 {[%clk 01:39:53]} {[%emt 00:02:20]} 10.
Bxc5 {[%clk 01:05:02]} {[%emt 00:15:43]} dxc5 {[%clk 01:38:23]} {[%emt
00:02:01]} 11. d6 {[%clk 01:05:26]} {[%emt 00:00:04]} Qd8 {[%clk 01:37:36]}
{[%emt 00:01:18]} 12. Nc7+ {[%clk 01:05:45]} {[%emt 00:00:12]} Kf8 {[%clk
01:37:52]} {[%emt 00:00:13]} 13. Nxa8 {[%clk 01:01:49]} {[%emt 00:04:27]} Nxa8
{[%clk 01:37:51]} {[%emt 00:00:30]} 14. Bb5 {[%clk 01:01:29]} {[%emt 00:00:50]}
Bd7 {[%clk 01:36:34]} {[%emt 00:01:47]} 15. Bxd7 {[%clk 00:57:47]} {[%emt
00:04:13]} Qxd7 {[%clk 01:36:29]} {[%emt 00:00:34]} 16. Qd5 {[%clk 00:57:07]}
{[%emt 00:01:10]} f6 {[%clk 01:16:52]} {[%emt 00:20:07]} 17. Qxc5 {[%clk
00:52:57]} {[%emt 00:04:40]} Nb6 {[%clk 01:17:14]} {[%emt 00:00:08]} 18. O-O
{[%clk 00:40:25]} {[%emt 00:13:02]} Nh6 {[%clk 01:11:06]} {[%emt 00:06:38]} 19.
Rfd1 {[%clk 00:37:21]} {[%emt 00:03:34]} Kf7 {[%clk 01:11:11]} {[%emt
00:00:24]} 20. Qa3 {[%clk 00:34:28]} {[%emt 00:03:25]} Qa4 {[%clk 01:02:19]}
{[%emt 00:09:21]} 21. Qc3 {[%clk 00:25:21]} {[%emt 00:09:37]} Rd8 {[%clk
00:47:52]} {[%emt 00:14:56]} 22. Qb3+ {[%clk 00:24:34]} {[%emt 00:01:18]} Qxb3
{[%clk 00:47:29]} {[%emt 00:00:53]} 23. axb3 {[%clk 00:25:01]} {[%emt
00:00:04]} a6 {[%clk 00:47:48]} {[%emt 00:00:09]} 24. c4 {[%clk 00:24:48]}
{[%emt 00:00:45]} Nd7 {[%clk 00:46:40]} {[%emt 00:01:37]} 25. b4 {[%clk
00:23:39]} {[%emt 00:01:40]} Nb8 {[%clk 00:40:47]} {[%emt 00:06:22]} 26. Rd5
{[%clk 00:16:59]} {[%emt 00:07:10]} Ke6 {[%clk 00:40:50]} {[%emt 00:00:26]} 27.
b5 {[%clk 00:05:34]} {[%emt 00:11:56]} Nf7 {[%clk 00:33:37]} {[%emt 00:07:43]}
28. bxa6 {[%clk 00:05:26]} {[%emt 00:00:39]} Nxa6 {[%clk 00:33:52]} {[%emt
00:00:14]} 29. Nd2 {[%clk 00:00:52]} {[%emt 00:05:04]} Rxd6 {[%clk 00:33:08]}
{[%emt 00:01:13]} 30. Nb3 {[%clk 00:00:44]} {[%emt 00:00:39]} Rxd5 {[%clk
00:24:47]} {[%emt 00:08:51]} 31. exd5+ {[%clk 00:01:04]} {[%emt 00:00:11]} Kd6
{[%clk 00:24:09]} {[%emt 00:01:06]} 32. Na5 {[%clk 00:00:53]} {[%emt 00:00:42]}
Kc7 {[%clk 00:22:27]} {[%emt 00:02:11]} 33. b4 {[%clk 00:00:43]} {[%emt
00:00:42]} Nxb4 {[%clk 00:22:32]} {[%emt 00:00:24]} 34. Rb1 {[%clk 00:01:08]}
{[%emt 00:00:05]} Bf8 {[%clk 00:22:49]} {[%emt 00:00:12]} 35. Nb3 {[%clk
00:01:20]} {[%emt 00:00:19]} b6 {[%clk 00:22:57]} {[%emt 00:00:22]} 36. Nd2
{[%clk 00:01:41]} {[%emt 00:00:10]} f5 {[%clk 00:22:37]} {[%emt 00:00:49]} 37.
Ra1 {[%clk 00:01:53]} {[%emt 00:00:18]} Kb7 {[%clk 00:21:57]} {[%emt 00:01:10]}
38. Rb1 {[%clk 00:02:11]} {[%emt 00:00:13]} Bc5 {[%clk 00:21:44]} {[%emt
00:00:42]} 39. Rb3 {[%clk 00:02:21]} {[%emt 00:00:21]} Nd6 {[%clk 00:21:38]}
{[%emt 00:00:35]} 40. Rh3 {[%clk 00:02:13]} {[%emt 00:00:39]} h5 {[%clk
00:21:05]} {[%emt 00:01:02]} 41. Rg3 {[%clk 00:29:46]} {[%emt 00:02:56]} f4
{[%clk 00:51:26]} {[%emt 00:00:09]} 42. Rxg6 {[%clk 00:28:27]} {[%emt
00:01:49]} e4 {[%clk 00:46:30]} {[%emt 00:05:27]} 43. Nb3 {[%clk 00:25:05]}
{[%emt 00:03:53]} Nxc4 {[%clk 00:45:41]} {[%emt 00:01:17]} 44. Rg7+ {[%clk
00:23:29]} {[%emt 00:02:08]} Ka6 {[%clk 00:45:43]} {[%emt 00:00:27]} 45. Nxc5+
{[%clk 00:23:44]} {[%emt 00:00:15]} bxc5 {[%clk 00:45:37]} {[%emt 00:00:35]} 46.
Rg5 {[%clk 00:23:57]} {[%emt 00:00:18]} Kb5 {[%clk 00:41:21]} {[%emt 00:04:46]}
47. Rxh5 {[%clk 00:21:32]} {[%emt 00:02:55]} Nd6 {[%clk 00:40:14]} {[%emt
00:01:37]} 48. Rh6 {[%emt 00:10:03]} Nb7 {[%clk 00:37:18]} 49. Rh7 {[%clk
00:12:37]} {[%emt 00:03:18]} Na5 {[%clk 00:37:27]} {[%emt 00:00:21]} 50. d6
{[%clk 00:12:02]} {[%emt 00:01:06]} Nac6 {[%clk 00:33:00]} {[%emt 00:04:56]} 51.
Rc7 {[%clk 00:06:07]} {[%emt 00:06:25]} Kc4 {[%clk 00:28:58]} {[%emt 00:04:32]}
52. h4 {[%clk 00:02:35]} {[%emt 00:04:03]} Kd3 {[%clk 00:24:27]} {[%emt
00:05:00]} 53. h5 {[%clk 00:01:44]} {[%emt 00:01:21]} e3 {[%clk 00:24:51]}
{[%emt 00:00:06]} 54. Re7 {[%clk 00:01:31]} {[%emt 00:00:43]} Nd5 {[%clk
00:24:04]} {[%emt 00:01:16]} 55. fxe3 {[%clk 00:00:35]} {[%emt 00:01:28]} Ndxe7
{[%clk 00:22:14]} {[%emt 00:02:19]} 56. dxe7 {[%clk 00:00:38]} {[%emt
00:00:27]} Nxe7 {[%clk 00:22:35]} {[%emt 00:00:09]} 57. exf4 {[%clk 00:01:04]}
{[%emt 00:00:04]} c4 {[%clk 00:19:49]} {[%emt 00:03:17]} 58. h6 {[%clk
00:01:17]} {[%emt 00:00:16]} c3 {[%clk 00:19:39]} {[%emt 00:00:40]} 59. f5
{[%clk 00:01:31]} {[%emt 00:00:16]} c2 {[%clk 00:19:53]} {[%emt 00:00:16]} 0-1

[Event "Masters Tournament (MTO)"]
[Site "Biel, Switzerland"]
[Date "2026.07.22"]
[Round "9.40"]
[White "Petry, Martin"]
[Black "Carey, Michael"]
[Result "0-1"]
[TimeControl "100+30+30sec/move"]
[WhiteTitle "-"]
[BlackTitle "-"]
[WhiteFideId "1352318"]
[BlackFideId "30923760"]
[WhiteElo "1999"]
[BlackElo "1946"]

1. Nf3 {[%clk 01:40:54]} {[%emt 00:00:04]} c5 {[%clk 01:40:44]} {[%emt
00:00:18]} 2. g3 {[%clk 01:40:27]} {[%emt 00:00:56]} g6 {[%clk 01:41:08]}
{[%emt 00:00:06]} 3. Bg2 {[%clk 01:40:04]} {[%emt 00:00:53]} Bg7 {[%clk
01:41:31]} {[%emt 00:00:07]} 4. e4 {[%clk 01:38:36]} {[%emt 00:01:58]} Nc6
{[%clk 01:41:51]} {[%emt 00:00:10]} 5. O-O {[%clk 01:38:32]} {[%emt 00:00:34]}
Rb8 {[%clk 01:42:18]} {[%emt 00:00:02]} 6. c3 {[%clk 01:36:32]} {[%emt
00:02:30]} d6 {[%clk 01:36:54]} {[%emt 00:05:54]} 7. d4 {[%clk 01:31:40]}
{[%emt 00:05:23]} cxd4 {[%clk 01:27:34]} {[%emt 00:09:50]} 8. cxd4 {[%clk
01:31:19]} {[%emt 00:00:50]} Nf6 {[%clk 01:21:32]} {[%emt 00:06:32]} 9. Qe2
{[%clk 01:22:00]} {[%emt 00:09:49]} O-O {[%clk 01:09:55]} {[%emt 00:12:07]} 10.
Nc3 {[%clk 01:20:37]} {[%emt 00:01:54]} Bg4 {[%clk 01:06:01]} {[%emt 00:04:23]}
11. Qe3 {[%clk 01:01:04]} {[%emt 00:20:04]} Nb4 {[%clk 00:47:50]} {[%emt
00:18:41]} 12. Ne1 {[%clk 00:57:46]} {[%emt 00:03:47]} Bd7 {[%clk 00:40:47]}
{[%emt 00:07:33]} 13. h3 {[%clk 00:55:41]} {[%emt 00:02:35]} Qc8 {[%clk
00:37:37]} {[%emt 00:03:40]} 14. Kh2 {[%clk 00:41:21]} {[%emt 00:14:49]} a5
{[%clk 00:33:05]} {[%emt 00:05:03]} 15. a3 {[%clk 00:36:46]} {[%emt 00:05:05]}
Nc6 {[%clk 00:32:15]} {[%emt 00:01:19]} 16. Nf3 {[%clk 00:30:01]} {[%emt
00:07:16]} b5 {[%clk 00:25:11]} {[%emt 00:07:34]} 17. e5 {[%clk 00:25:05]}
{[%emt 00:05:26]} dxe5 {[%clk 00:24:31]} {[%emt 00:01:10]} 18. dxe5 {[%clk
00:22:35]} {[%emt 00:03:00]} Ne8 {[%clk 00:24:22]} {[%emt 00:00:39]} 19. Bd2
{[%clk 00:21:20]} {[%emt 00:01:45]} Be6 {[%clk 00:22:04]} {[%emt 00:02:48]} 20.
Rfc1 {[%clk 00:16:57]} {[%emt 00:04:53]} Qd8 {[%clk 00:20:35]} {[%emt
00:02:00]} 21. Rd1 {[%clk 00:12:13]} {[%emt 00:05:14]} Bb3 {[%clk 00:20:23]}
{[%emt 00:00:42]} 22. Be1 {[%clk 00:05:25]} {[%emt 00:07:18]} Bxd1 {[%clk
00:20:24]} {[%emt 00:00:29]} 23. Rxd1 {[%clk 00:05:53]} {[%emt 00:00:02]} Qb6
{[%clk 00:19:27]} {[%emt 00:01:26]} 24. Qf4 {[%clk 00:06:16]} {[%emt 00:00:07]}
Nc7 {[%clk 00:17:08]} {[%emt 00:02:49]} 25. Qh4 {[%clk 00:05:00]} {[%emt
00:01:46]} Rbd8 {[%clk 00:11:38]} {[%emt 00:06:00]} 26. Rc1 {[%clk 00:04:51]}
{[%emt 00:00:39]} Ne6 {[%clk 00:08:48]} {[%emt 00:03:20]} 27. Ng5 {[%clk
00:01:48]} {[%emt 00:03:32]} Nxg5 {[%clk 00:08:13]} {[%emt 00:01:05]} 28. Nd5
{[%clk 00:01:31]} {[%emt 00:00:48]} Qd4 {[%clk 00:01:41]} {[%emt 00:07:02]} 29.
Qxg5 {[%clk 00:01:04]} {[%emt 00:00:57]} Rxd5 {[%clk 00:01:31]} {[%emt
00:00:41]} 30. Rxc6 {[%clk 00:00:45]} {[%emt 00:00:49]} Rxe5 {[%clk 00:01:11]}
{[%emt 00:00:50]} 31. Qc1 {[%clk 00:01:13]} {[%emt 00:00:01]} Qd8 {[%clk
00:00:48]} {[%emt 00:00:53]} 32. Bd2 {[%clk 00:00:50]} {[%emt 00:00:54]} Re6
{[%clk 00:00:55]} {[%emt 00:00:23]} 33. Rc5 {[%clk 00:01:01]} {[%emt 00:00:19]}
Re2 {[%clk 00:00:49]} {[%emt 00:00:35]} 34. Be3 {[%clk 00:00:55]} {[%emt
00:00:36]} Rxb2 {[%clk 00:00:49]} {[%emt 00:00:31]} 35. h4 {[%clk 00:01:03]}
{[%emt 00:00:21]} h5 {[%clk 00:01:00]} {[%emt 00:00:19]} 36. Rd5 {[%clk
00:00:37]} {[%emt 00:00:56]} Qc8 {[%clk 00:00:59]} {[%emt 00:00:30]} 37. Qf1
{[%clk 00:00:53]} {[%emt 00:00:15]} Qc4 {[%clk 00:00:57]} {[%emt 00:00:32]} 38.
Qd1 {[%clk 00:01:14]} {[%emt 00:00:09]} Qb3 {[%clk 00:01:01]} {[%emt 00:00:27]}
39. Qf1 {[%clk 00:01:19]} {[%emt 00:00:24]} Qc4 {[%clk 00:01:26]} {[%emt
00:00:06]} 40. Qd1 {[%clk 00:00:50]} {[%emt 00:00:58]} Qb3 {[%clk 00:01:54]}
{[%emt 00:00:02]} 41. Qf1 {[%clk 00:30:01]} {[%emt 00:01:19]} e6 {[%clk
00:26:06]} {[%emt 00:06:18]} 42. Rd7 {[%clk 00:29:01]} {[%emt 00:01:29]} Qxa3
{[%clk 00:21:53]} {[%emt 00:04:43]} 43. Qd1 {[%clk 00:25:23]} {[%emt 00:04:09]}
Qb3 {[%clk 00:19:37]} {[%emt 00:02:45]} 44. Qd6 {[%clk 00:24:36]} {[%emt
00:01:18]} Rc2 {[%clk 00:13:23]} {[%emt 00:06:44]} 45. Qf4 {[%clk 00:20:33]}
{[%emt 00:04:32]} Rc4 {[%clk 00:11:57]} {[%emt 00:01:57]} 46. Qg5 {[%clk
00:14:06]} {[%emt 00:06:57]} a4 {[%clk 00:09:03]} {[%emt 00:03:24]} 47. Bc5
{[%clk 00:12:10]} {[%emt 00:02:26]} Rxc5 {[%clk 00:09:19]} {[%emt 00:00:14]} 48.
Qxc5 {[%clk 00:12:27]} {[%emt 00:00:13]} a3 {[%clk 00:09:27]} {[%emt 00:00:22]}
0-1

[Event "Masters Tournament (MTO)"]
[Site "Biel, Switzerland"]
[Date "2026.07.22"]
[Round "9.41"]
[White "Alsaleh, Eissa"]
[Black "Oestmann, Lukas"]
[Result "0-1"]
[TimeControl "100+30+30sec/move"]
[WhiteTitle "-"]
[BlackTitle "-"]
[WhiteFideId "10312463"]
[BlackFideId "1326457"]
[WhiteElo "1908"]
[BlackElo "1998"]

1. e4 {[%clk 01:40:34]} {[%emt 00:00:25]} c5 {[%clk 01:40:57]} {[%emt
00:00:04]} 2. Nf3 {[%clk 01:40:55]} {[%emt 00:00:11]} e6 {[%clk 01:41:24]}
{[%emt 00:00:01]} 3. d4 {[%clk 01:40:52]} {[%emt 00:00:33]} cxd4 {[%clk
01:41:51]} {[%emt 00:00:04]} 4. Nxd4 {[%clk 01:41:17]} {[%emt 00:00:04]} a6
{[%clk 01:42:18]} {[%emt 00:00:03]} 5. Nc3 {[%clk 01:40:59]} {[%emt 00:00:48]}
Qc7 {[%clk 01:42:45]} {[%emt 00:00:03]} 6. a3 {[%clk 01:37:57]} {[%emt
00:03:33]} Nf6 {[%clk 01:41:58]} {[%emt 00:01:16]} 7. f3 {[%clk 01:38:00]}
{[%emt 00:00:27]} b5 {[%clk 01:37:44]} {[%emt 00:04:44]} 8. Be3 {[%clk
01:25:08]} {[%emt 00:13:22]} Bb7 {[%clk 01:36:28]} {[%emt 00:01:46]} 9. Na2
{[%clk 01:20:26]} {[%emt 00:05:12]} d5 {[%clk 01:32:29]} {[%emt 00:04:29]} 10.
exd5 {[%clk 01:12:03]} {[%emt 00:08:53]} Nxd5 {[%clk 01:32:27]} {[%emt
00:00:33]} 11. Qe2 {[%clk 01:03:25]} {[%emt 00:08:58]} Nxe3 {[%clk 01:23:23]}
{[%emt 00:09:42]} 12. Qxe3 {[%clk 01:01:35]} {[%emt 00:02:20]} Bc5 {[%clk
01:20:43]} {[%emt 00:03:10]} 13. Qc3 {[%clk 00:54:16]} {[%emt 00:07:49]} O-O
{[%clk 01:13:44]} {[%emt 00:07:30]} 14. b4 {[%clk 00:50:34]} {[%emt 00:04:12]}
Qe5+ {[%clk 01:12:36]} {[%emt 00:01:37]} 15. Ne2 {[%clk 00:49:51]} {[%emt
00:01:12]} Qxc3+ {[%clk 01:08:54]} {[%emt 00:04:14]} 16. Nexc3 {[%clk
00:48:33]} {[%emt 00:01:47]} Bd4 {[%clk 01:01:17]} {[%emt 00:08:08]} 17. Rd1
{[%clk 00:46:44]} {[%emt 00:02:17]} Nc6 {[%clk 01:00:38]} {[%emt 00:01:11]} 18.
Ne4 {[%clk 00:45:15]} {[%emt 00:01:59]} Rad8 {[%clk 00:58:22]} {[%emt
00:02:45]} 19. c3 {[%clk 00:41:55]} {[%emt 00:03:50]} Bb6 {[%clk 00:51:18]}
{[%emt 00:07:35]} 20. Bd3 {[%clk 00:34:19]} {[%emt 00:08:06]} Ne5 {[%clk
00:50:23]} {[%emt 00:01:25]} 21. Ke2 {[%clk 00:32:20]} {[%emt 00:02:29]} Nxd3
{[%clk 00:50:27]} {[%emt 00:00:27]} 22. Rxd3 {[%clk 00:32:24]} {[%emt
00:00:25]} Bd5 {[%emt 00:06:55]} 23. Nc1 {[%clk 00:26:13]} Bc4 {[%clk
00:51:01]} {[%emt 00:00:12]} 24. Rhd1 {[%clk 00:25:05]} {[%emt 00:01:38]} Rd5
{[%clk 00:49:35]} {[%emt 00:01:56]} 25. Nd2 {[%clk 00:23:17]} {[%emt 00:02:18]}
Bxd3+ {[%clk 00:49:27]} {[%emt 00:00:38]} 26. Nxd3 {[%clk 00:23:37]} {[%emt
00:00:10]} Rfd8 {[%clk 00:49:04]} {[%emt 00:00:51]} 27. Ne4 {[%clk 00:22:46]}
{[%emt 00:01:22]} f5 {[%clk 00:45:33]} {[%emt 00:04:01]} 28. Ng5 {[%clk
00:20:40]} {[%emt 00:02:32]} R8d6 {[%clk 00:42:33]} {[%emt 00:03:33]} 29. Nh3
{[%clk 00:19:38]} {[%emt 00:01:33]} e5 {[%clk 00:42:22]} {[%emt 00:00:42]} 30.
Nhf2 {[%clk 00:16:36]} {[%emt 00:03:31]} Bxf2 {[%clk 00:39:07]} {[%emt
00:03:45]} 31. Nxf2 {[%clk 00:16:55]} {[%emt 00:00:11]} Rxd1 {[%clk 00:39:34]}
{[%emt 00:00:04]} 32. Nxd1 {[%clk 00:17:14]} {[%emt 00:00:10]} Kf7 {[%clk
00:34:34]} {[%emt 00:05:31]} 33. Nb2 {[%clk 00:16:54]} {[%emt 00:00:50]} Rg6
{[%clk 00:34:05]} {[%emt 00:00:59]} 34. Kf2 {[%clk 00:15:32]} {[%emt 00:01:52]}
Rc6 {[%clk 00:33:52]} {[%emt 00:00:42]} 35. Nd1 {[%clk 00:14:47]} {[%emt
00:01:15]} Ke6 {[%clk 00:34:02]} {[%emt 00:00:21]} 36. Ke2 {[%clk 00:14:42]}
{[%emt 00:00:35]} h5 {[%clk 00:30:46]} {[%emt 00:03:45]} 37. Kd3 {[%clk
00:14:06]} {[%emt 00:01:07]} Rd6+ {[%clk 00:31:02]} {[%emt 00:00:15]} 38. Ke2
{[%clk 00:12:38]} {[%emt 00:01:58]} h4 {[%clk 00:25:04]} {[%emt 00:06:28]} 39.
Nf2 {[%clk 00:11:06]} {[%emt 00:02:01]} Kd5 {[%clk 00:24:00]} {[%emt 00:01:34]}
40. Kd3 {[%clk 00:10:28]} {[%emt 00:01:08]} Rg6 {[%clk 00:23:43]} {[%emt
00:00:42]} 41. Nd1 {[%clk 00:03:25]} {[%emt 00:07:38]} f4 {[%clk 00:23:22]}
{[%emt 00:00:51]} 0-1

[Event "Masters Tournament (MTO)"]
[Site "Biel, Switzerland"]
[Date "2026.07.22"]
[Round "9.42"]
[White "Wenger, Arejou"]
[Black "Malli, Shiivesh Sunil"]
[Result "1/2-1/2"]
[TimeControl "100+30+30sec/move"]
[WhiteTitle "-"]
[BlackTitle "-"]
[WhiteFideId "1336584"]
[BlackFideId "1340409"]
[WhiteElo "1873"]
[BlackElo "1994"]

1. e4 {[%clk 01:40:58]} d5 {[%clk 01:40:54]} {[%emt 00:00:06]} 2. exd5 {[%clk
01:41:20]} {[%emt 00:00:08]} Nf6 {[%clk 01:35:20]} {[%emt 00:06:05]} 3. d4
{[%clk 01:41:31]} {[%emt 00:00:19]} Qxd5 {[%clk 01:35:44]} {[%emt 00:00:05]} 4.
Nf3 {[%clk 01:41:42]} {[%emt 00:00:19]} Bg4 {[%clk 01:36:06]} {[%emt 00:00:08]}
5. Be2 {[%clk 01:41:57]} {[%emt 00:00:15]} Nc6 {[%clk 01:36:32]} {[%emt
00:00:05]} 6. c4 {[%clk 01:39:37]} {[%emt 00:02:50]} Qh5 {[%clk 01:36:07]}
{[%emt 00:00:54]} 7. Be3 {[%clk 01:34:39]} {[%emt 00:05:28]} O-O-O {[%clk
01:36:00]} {[%emt 00:00:37]} 8. Nc3 {[%clk 01:33:08]} {[%emt 00:02:02]} e5
{[%clk 01:32:26]} {[%emt 00:04:03]} 9. d5 {[%clk 01:32:43]} {[%emt 00:00:53]}
e4 {[%clk 01:25:25]} {[%emt 00:07:33]} 10. Ng5 {[%clk 01:21:56]} {[%emt
00:11:17]} Ne5 {[%clk 01:17:08]} {[%emt 00:08:46]} 11. Ngxe4 {[%clk 01:18:58]}
{[%emt 00:03:28]} Bxe2 {[%clk 01:16:15]} {[%emt 00:01:24]} 12. Qxe2 {[%clk
01:18:42]} {[%emt 00:00:46]} Qxe2+ {[%clk 01:16:24]} {[%emt 00:00:21]} 13. Kxe2
{[%clk 01:18:58]} {[%emt 00:00:15]} Nxe4 {[%clk 01:16:02]} {[%emt 00:00:52]} 14.
Nxe4 {[%clk 01:19:18]} {[%emt 00:00:10]} Nxc4 {[%clk 01:15:40]} {[%emt
00:00:52]} 15. Rhd1 {[%clk 01:14:53]} {[%emt 00:04:54]} Nxe3 {[%clk 01:13:52]}
{[%emt 00:02:19]} 16. Kxe3 {[%clk 01:09:43]} {[%emt 00:05:40]} Be7 {[%clk
01:12:14]} {[%emt 00:02:08]} 17. Rac1 {[%clk 01:05:00]} {[%emt 00:05:12]} Rhe8
{[%clk 01:11:18]} {[%emt 00:01:25]} 18. Kf3 {[%clk 01:00:53]} {[%emt 00:04:38]}
f5 {[%clk 01:04:47]} {[%emt 00:07:01]} 19. Nc5 {[%clk 00:50:57]} {[%emt
00:10:26]} Bxc5 {[%clk 00:48:54]} {[%emt 00:16:23]} 20. Rxc5 {[%clk 00:49:30]}
{[%emt 00:01:57]} Rd6 {[%clk 00:48:54]} {[%emt 00:00:29]} 21. Kf4 {[%clk
00:37:51]} {[%emt 00:12:11]} g6 {[%clk 00:46:37]} {[%emt 00:02:47]} 22. f3
{[%clk 00:35:21]} {[%emt 00:03:00]} Re2 {[%clk 00:45:56]} {[%emt 00:01:10]} 23.
Rdc1 {[%clk 00:35:26]} {[%emt 00:00:25]} Rd7 {[%clk 00:45:41]} {[%emt
00:00:44]} 24. R1c2 {[%clk 00:30:32]} {[%emt 00:05:25]} Rxc2 {[%clk 00:45:44]}
{[%emt 00:00:27]} 25. Rxc2 {[%clk 00:30:58]} {[%emt 00:00:05]} Rxd5 {[%clk
00:46:09]} {[%emt 00:00:05]} 26. Kg5 {[%clk 00:30:23]} {[%emt 00:01:04]} Kd8
{[%clk 00:45:01]} {[%emt 00:01:38]} 27. Kh6 {[%clk 00:28:38]} {[%emt 00:02:15]}
Rd7 {[%clk 00:44:39]} {[%emt 00:00:52]} 28. h4 {[%clk 00:25:29]} {[%emt
00:03:39]} b6 {[%clk 00:41:29]} {[%emt 00:03:40]} 29. Rc6 {[%clk 00:20:05]}
{[%emt 00:05:54]} Rf7 {[%clk 00:31:41]} {[%emt 00:10:17]} 30. h5 {[%clk
00:15:56]} {[%emt 00:04:40]} gxh5 {[%clk 00:31:35]} {[%emt 00:00:35]} 31. Kxh5
{[%clk 00:16:13]} {[%emt 00:00:13]} Kd7 {[%clk 00:31:46]} {[%emt 00:00:20]} 32.
Rh6 {[%clk 00:15:33]} {[%emt 00:01:10]} Rg7 {[%clk 00:30:24]} {[%emt 00:01:52]}
33. g4 {[%clk 00:09:45]} {[%emt 00:06:18]} fxg4 {[%clk 00:30:18]} {[%emt
00:00:36]} 34. fxg4 {[%clk 00:10:11]} {[%emt 00:00:04]} c5 {[%clk 00:30:19]}
{[%emt 00:00:29]} 35. g5 {[%clk 00:10:27]} {[%emt 00:00:14]} Kc7 {[%clk
00:30:00]} {[%emt 00:00:48]} 36. Kg4 {[%clk 00:10:38]} {[%emt 00:00:20]} Rf7
{[%clk 00:27:24]} {[%emt 00:03:05]} 37. b3 {[%clk 00:06:19]} {[%emt 00:04:50]}
b5 {[%clk 00:25:28]} {[%emt 00:02:26]} 38. Ra6 {[%clk 00:05:10]} {[%emt
00:01:40]} Kb7 {[%clk 00:25:43]} {[%emt 00:00:14]} 39. Rf6 {[%clk 00:05:06]}
{[%emt 00:00:35]} Rd7 {[%clk 00:24:19]} {[%emt 00:01:52]} 40. Kf4 {[%clk
00:01:04]} {[%emt 00:04:32]} c4 {[%clk 00:18:23]} {[%emt 00:06:27]} 41. bxc4
{[%clk 00:29:04]} {[%emt 00:02:30]} bxc4 {[%clk 00:48:46]} {[%emt 00:00:07]} 42.
Ke3 {[%clk 00:27:51]} {[%emt 00:01:43]} c3 {[%clk 00:47:46]} {[%emt 00:01:30]}
43. Rf1 {[%clk 00:27:37]} {[%emt 00:00:44]} Kc8 {[%clk 00:37:18]} {[%emt
00:10:57]} 44. Rc1 {[%clk 00:16:26]} {[%emt 00:11:42]} Rc7 {[%clk 00:36:21]}
{[%emt 00:01:27]} 45. Kd3 {[%clk 00:16:43]} {[%emt 00:00:12]} Kd7 {[%clk
00:36:30]} {[%emt 00:00:22]} 46. Kc2 {[%clk 00:17:00]} {[%emt 00:00:13]} Ke6
{[%clk 00:36:21]} {[%emt 00:00:39]} 47. Rf1 {[%clk 00:16:21]} {[%emt 00:01:08]}
Ke5 {[%clk 00:35:47]} {[%emt 00:01:04]} 48. Rf8 {[%clk 00:15:05]} {[%emt
00:01:47]} Kd5 {[%clk 00:34:36]} {[%emt 00:01:40]} 49. Rg8 {[%clk 00:13:02]}
{[%emt 00:02:34]} Kc4 {[%clk 00:32:00]} {[%emt 00:03:03]} 50. g6 {[%clk
00:11:13]} {[%emt 00:02:21]} hxg6 {[%clk 00:31:35]} {[%emt 00:00:56]} 51. Rxg6
{[%clk 00:11:36]} {[%emt 00:00:07]} Kb4 {[%clk 00:31:38]} {[%emt 00:00:27]} 52.
Rg3 {[%clk 00:09:26]} {[%emt 00:02:34]} a5 {[%clk 00:23:00]} {[%emt 00:09:14]}
53. a3+ {[%clk 00:09:00]} {[%emt 00:00:56]} Kxa3 {[%clk 00:23:22]} {[%emt
00:00:08]} 54. Rxc3+ {[%clk 00:09:23]} {[%emt 00:00:07]} Rxc3+ {[%clk
00:23:45]} {[%emt 00:00:07]} 55. Kxc3 {[%clk 00:09:48]} {[%emt 00:00:06]} Ka2
{[%clk 00:22:14]} {[%emt 00:02:01]} 56. Kc2 {[%clk 00:10:13]} {[%emt 00:00:05]}
a4 {[%clk 00:22:34]} {[%emt 00:00:09]} 57. Kc1 {[%clk 00:10:38]} {[%emt
00:00:05]} 1/2-1/2